[Event "CCT Airthings Masters Play-In 2023"]
[Site "Online"]
[Date "2023.02.03"]
[Round "5"]
[White "Firouzja, Alireza"]
[Black "xxysoul6"]
[Result "1-0"]
[ECO "C02"]
[WhiteElo "2785"]
[BlackElo "2705"]
[Annotator "TA"]
[PlyCount "81"]
[EventDate "2023.02.03"]
[EventType "swiss"]
[EventCountry "NET"]
[SourceTitle "playchess.com"]
[Source "ChessBase"]
[SourceQuality "1"]
[TimeControl "600+2"]

{[%evp 13,81,-3,17,6,0,0,34,28,131,129,132,140,146,133,129,60,191,212,219,193,179,167,241,212,208,210,291,284,345,245,293,275,318,165,185,180,174,163,170,181,445,204,212,195,208,212,216,203,215,210,254,172,179,173,243,231,278,279,300,300,495,495,553,375,585,541,585,585,545,392]} 1. e4 {[%emt 0:00:15]} e6 {[%emt 0:00:06]} 2. d4 {[%emt 0:00:01]} d5 {[%emt 0:00:01]} 3. e5 {[%emt 0:00:01]} c5 {[%emt 0:00:02]} 4. c3 {[%emt 0:00:01]} Nc6 {[%emt 0:00:03]} 5. Nf3 {[%emt 0:00:01]} Bd7 {[%emt 0:00:01]} 6. Be2 {[%emt 0:00:04]} Nge7 {[%emt 0:00:04]} 7. Na3 {[%emt 0:00:06]} Ng6 {[%emt 0:00:29]} 8. h4 {[%emt 0:00:34][%cal Bh2h4,Bh4h5,Bh5h6][%mdl 32] C02: French: Advance Variation.} cxd4 {[%emt 0:01:19]} 9. cxd4 {[%emt 0:00:05]} Bb4+ {[%emt 0:00:07]} 10. Kf1 {[%emt 0:00:03] Threatening h5. White is slightly better.} f6 {[%emt 0:00:09]} (10... Be7 $11) 11. h5 $16 {[%emt 0:00:03]} Ngxe5 {[%emt 0:00:17]} 12. dxe5 {[%emt 0:00:09]} fxe5 {[%emt 0:00:00]} 13. h6 {[%emt 0:01:12]} g6 {[%emt 0:00:07]} 14. Bg5 {[%emt 0:03:04] [#]} (14. Nc2 $16 {And now Nxb4 would win.} Bd6 15. Bg5) 14... Qb8 $146 {[%emt 0:00:40] This move loses the game for Black.} (14... Be7 $14 15. Bxe7 Qxe7) ({Predecessor:} 14... Be7 15. Bxe7 Qxe7 16. Bb5 Qf6 17. Qd2 O-O 18. Qg5 e4 19. Qxf6 Rxf6 20. Bxc6 Bxc6 {1-0 Webb,L (2293)-Redmond,J (2196) BCF-chT1b 0910 (4NCL) 2009 (6.5)}) 15. Nc2 $18 {[%emt 0:01:00] Threatens to win with Nxb4.} Bd6 {[%emt 0:00:07]} 16. Nh2 {[%emt 0:00:01][%cal Bf3h2,Bh2g4,Bg4f6][%mdl 32]} O-O {[%emt 0:00:46]} 17. Ng4 {[%emt 0:00:01]} Bc5 {[%emt 0:00:00]} (17... Be7 $142) 18. Nf6+ {[%emt 0:00:17]} Rxf6 {[%emt 0:01:07]} 19. Bxf6 {[%emt 0:00:00]} e4 {[%emt 0:00:01]} 20. Qd2 {[%emt 0:00:30] Against Qf4} Qd6 {[%emt 0:00:36]} 21. Bh4 {[%emt 0:01:04]} Rf8 {[%emt 0:00:03]} 22. Kg1 {[%emt 0:00:05]} d4 {[%emt 0:00:18]} 23. Rd1 {[%emt 0:00:09]} (23. Bg3 Qe7 24. Bb5 d3 $18) (23. b4 $142 Bb6 24. Bg3) 23... d3 {[%emt 0:00:57] [#]} 24. Bxd3 {[%emt 0:00:02]} exd3 {[%emt 0:00:02]} 25. Qxd3 {[%emt 0:00:00]} Qf4 {[%emt 0:00:03][%cal Rc5f2]} 26. Qd2 {[%emt 0:00:02] Hoping for Qxf4.} ({Worse is} 26. Qxd7 Bxf2+ 27. Bxf2 Qxf2+ 28. Kh2 Qh4+ 29. Kg1 Qf2+ 30. Kh2 Qh4+ 31. Kg1 Qf2+ $11) 26... Qf7 {[%emt 0:00:23]} (26... Be8 27. Qxf4 Rxf4) 27. Qxd7 {[%emt 0:00:16]} (27. Rh3 $142 Bc8 28. b4) 27... Bxf2+ {[%emt 0:00:03]} 28. Kh2 {[%emt 0:00:01]} (28. Bxf2 Qxf2+ 29. Kh2 Qh4+ 30. Kg1 Qf2+ 31. Kh2 Qh4+ 32. Kg1 Qf2+ $11) 28... Bxh4 {[%emt 0:00:20] [#]} 29. Rhf1 {[%emt 0:00:06][%mdl 512] Dodges Qf4+} Bf6 {[%emt 0:00:12]} 30. Ne3 {[%emt 0:00:20][%cal Bc2e3,Be3g4,Bg4f2][%mdl 32]} Ne5 {[%emt 0:00:29]} 31. Qxf7+ {[%emt 0:00:01]} Rxf7 {[%emt 0:00:06]} 32. Rc1 {[%emt 0:00:21] Strongly threatening Rc8+.} Nc6 {[%emt 0:00:05]} 33. Ng4 $36 {[%emt 0:00:02][%mdl 2048] Keeping Black busy.} Bg5 {[%emt 0:00:08]} (33... Bxb2 $2 34. Rxf7 Kxf7 35. Rf1+ Ke8 36. Rb1 $18) (33... Bd4 $142 34. Rxf7 Kxf7) 34. Rcd1 {[%emt 0:00:08]} Rf5 {[%emt 0:00:17]} 35. Rfe1 {[%emt 0:00:01]} e5 {[%emt 0:00:30]} 36. g3 {[%emt 0:00:11]} Be7 $2 {[%emt 0:00:14]} (36... Kf8 {might work better.} 37. Rd7 Rf7 38. Rxf7+ (38. Nxe5 Nxe5 {[%mdl 64] Remove Defender} 39. Rxe5 Rxd7 $15) 38... Kxf7 39. Nxe5+ Nxe5 40. Rxe5 Be7) 37. Rd7 {[%emt 0:00:06]} Rg5 {[%emt 0:00:13]} 38. Nf2 {[%emt 0:00:02]} Kf7 {[%emt 0:00:29]} (38... Rf5 $142) 39. Rxb7 {[%emt 0:00:02] White is clearly winning.} Ke6 {[%emt 0:00:02]} 40. Kg2 {[%emt 0:00:05]} Rh5 {[%emt 0:00:03]} 41. Rh1 {[%emt 0:00:04] Weighted Error Value: White=0.31/Black=0.53} 1-0

[Event "CCT Airthings Masters Play-In 2023"]
[Site "Online"]
[Date "2023.02.03"]
[Round "5"]
[White "GMSrinath"]
[Black "igorkovalenko"]
[Result "0-1"]
[ECO "D02"]
[WhiteElo "2776"]
[BlackElo "2603"]
[Annotator "TA"]
[PlyCount "94"]
[EventDate "2023.02.03"]
[EventType "swiss"]
[EventCountry "NET"]
[SourceTitle "playchess.com"]
[Source "ChessBase"]
[SourceQuality "1"]
[TimeControl "600+2"]

{[%evp 11,94,-16,0,-7,0,-4,0,6,18,-6,0,0,0,0,0,0,0,0,0,0,-2,-68,-42,-32,-31,-39,-36,-41,-34,-41,-45,-30,-49,-73,-84,-85,0,0,0,-9,-10,-10,-8,-50,-14,-41,-18,-62,-37,-61,-33,-81,-72,-156,-96,-176,-54,-104,-126,-127,-110,-530,-419,-793,-793,-785,-785,-792,-789,-725,-636,-793,-781,-791,-771,-781,-767,-747,-743,-1710,-1536,-29981,-29982,-12849,-5318]} 1. Nf3 {[%emt 0:00:03]} d5 {[%emt 0:00:36]} 2. d4 {[%emt 0:00:02]} Nf6 {[%emt 0:00:29]} 3. Bf4 {[%emt 0:00:03]} e6 {[%emt 0:00:01]} 4. e3 {[%emt 0:00:09]} Bd6 {[%emt 0:00:22]} 5. Ne5 {[%emt 0:00:02]} c5 {[%emt 0:00:11]} 6. Nd2 {[%emt 0:00:16]} O-O {[%emt 0:00:20]} 7. c3 {[%emt 0:00:17] D02: 1 d4 d5 2 Nf3 sidelines, including 2...Nf6 3 g3 and 2...Nf6 3 Bf4.} Nc6 {[%emt 0:00:50] 7...Qc7 is the modern continuation.} 8. Bd3 {[%emt 0:00:08]} Qc7 {[%emt 0:00:05][%cal Rc6e5]} 9. Ndf3 {[%emt 0:00:02] The position is equal.} h6 {[%emt 0:00:04]} 10. h3 {[%emt 0:00:19]} Nd7 {[%emt 0:00:08]} 11. Nxd7 {[%emt 0:01:13]} Bxd7 {[%emt 0:00:05]} 12. Bxd6 {[%emt 0:00:03]} Qxd6 {[%emt 0:00:00]} 13. O-O {[%emt 0:01:38]} Rad8 {[%emt 0:00:20] [#]} 14. dxc5 $146 {[%emt 0:00:17]} ({Predecessor:} 14. Bb5 Nxd4 15. Nxd4 cxd4 16. Bxd7 Rxd7 17. Qxd4 b6 18. Rfd1 Rc8 19. Qg4 Rc4 20. Rd4 Rdc7 21. Rad1 Qe5 22. Rxc4 Rxc4 23. Rd4 Qf5 {½-½ Grabinsky,A (2417)-Tang,A (2531) Charlotte op 2023 (3)}) 14... Qxc5 {[%emt 0:00:02]} 15. Qc2 {[%emt 0:00:00]} e5 {[%emt 0:00:07][%cal Be6e5,Be5e4][%mdl 32]} 16. Bh7+ {[%emt 0:01:15]} Kh8 {[%emt 0:00:02]} 17. Bf5 {[%emt 0:00:00]} e4 {[%emt 0:00:09]} 18. Bxd7 {[%emt 0:00:02]} Rxd7 {[%emt 0:00:00]} 19. Nd2 {[%emt 0:00:04]} f5 {[%emt 0:00:03]} 20. Rad1 {[%emt 0:00:04]} Ne5 {[%emt 0:00:19]} 21. Nb3 {[%emt 0:00:14]} Qb6 {[%emt 0:00:06]} 22. Rd4 {[%emt 0:00:03]} Qg6 {[%emt 0:00:12] Black is much more active.} 23. Kh1 {[%emt 0:00:01]} Nd3 {[%emt 0:00:18] Dodges Nc5} ({Black should play} 23... f4 $17 {...f3 would be deadly.} 24. exf4 Rxf4) 24. Nc1 $11 {[%emt 0:00:09]} Ne5 {[%emt 0:00:08]} 25. Rfd1 {[%emt 0:00:05]} Qf7 {[%emt 0:00:06]} 26. Ne2 {[%emt 0:00:22]} Rfd8 {[%emt 0:00:05]} 27. R4d2 {[%emt 0:00:16]} g5 {[%emt 0:00:05]} 28. b3 {[%emt 0:00:18]} b5 {[%emt 0:00:05]} (28... f4 {is more complex.} 29. c4 f3 30. Ng3 fxg2+ 31. Kxg2 Nd3) 29. Qb2 {[%emt 0:00:06][%cal Oc3c4]} Kh7 {[%emt 0:00:08]} 30. Nd4 {[%emt 0:00:09][%cal Of2f4]} a6 {[%emt 0:00:01]} 31. Qa3 {[%emt 0:00:05]} (31. f4 $15 {feels stronger.} exf3 32. Qc2) 31... Qf6 $17 {[%emt 0:00:08]} 32. Qc5 {[%emt 0:00:05] [#]} ({White should try} 32. f4 Nd3 33. Rxd3 exd3 34. fxg5 hxg5 35. Qb2) 32... f4 {[%emt 0:00:20]} (32... g4 $142 $1 33. g3 gxh3) 33. Kg1 {[%emt 0:00:02]} (33. Nc2 $17) 33... Kg6 {[%emt 0:00:04]} (33... fxe3 $19 34. fxe3 Rf7) 34. a4 {[%emt 0:00:18] [#]} (34. a3 $15) 34... bxa4 $1 {[%emt 0:00:02]} 35. bxa4 {[%emt 0:00:00]} Nc4 $36 {[%emt 0:00:17][%mdl 2048] Keeping White busy.} 36. Nc6 $2 {[%emt 0:00:51][%mdl 8192] This move loses the game for White.} Rc7 $19 {[%emt 0:00:28]} 37. Qxc4 {[%emt 0:00:29]} (37. Rxd5 $142 Rxc6 38. Qb4 Rxd5 39. Rxd5) 37... dxc4 {[%emt 0:00:06]} 38. Nxd8 {[%emt 0:00:00]} Qxc3 {[%emt 0:00:12]} ({And not} 38... fxe3 39. Rd6 $17) 39. Rd6+ {[%emt 0:00:03]} Kh7 {[%emt 0:00:03]} 40. Ne6 {[%emt 0:00:30]} Rf7 {[%emt 0:00:03]} 41. Nd8 {[%emt 0:00:01]} Re7 {[%emt 0:00:07]} 42. Nc6 {[%emt 0:00:01]} Rc7 {[%emt 0:00:07]} 43. exf4 {[%emt 0:00:05]} gxf4 {[%emt 0:00:02]} 44. Nd4 {[%emt 0:00:05]} Rf7 {[%emt 0:00:07] Strongly threatening ...Qb2.} 45. Ne6 {[%emt 0:00:07]} e3 {[%emt 0:00:11] White must now prevent ...e2.} 46. Rd7 {[%emt 0:00:15]} Rxd7 {[%emt 0:00:05]} 47. Rxd7+ {[%emt 0:00:00]} Kg8 {[%emt 0:00:01] Weighted Error Value: White=0.78/Black=0.10 (very precise)} 0-1

[Event "CCT Airthings Masters Play-In 2023"]
[Site "Online"]
[Date "2023.02.03"]
[Round "5"]
[White "Nakamura, Hikaru"]
[Black "LastGladiator1"]
[Result "1-0"]
[ECO "D00"]
[WhiteElo "2768"]
[BlackElo "2606"]
[Annotator "TA"]
[PlyCount "105"]
[EventDate "2023.02.03"]
[EventType "swiss"]
[EventCountry "NET"]
[SourceTitle "playchess.com"]
[Source "ChessBase"]
[SourceQuality "1"]
[TimeControl "600+2"]

{[%evp 9,105,0,2,0,56,45,45,26,24,9,36,0,11,-14,16,-8,31,-32,22,27,21,33,41,35,85,81,73,47,69,23,33,0,0,-16,-8,-8,0,0,-3,-21,-37,-31,-27,-68,-39,-64,-67,-85,-78,-70,0,0,-16,0,43,31,33,25,38,0,0,0,0,0,0,0,0,0,0,-29,0,0,0,-8,0,0,0,-61,139,0,56,37,44,55,262,252,345,318,300,296,254,252,562,506,1733,1471,29987,29988]} 1. d4 {[%emt 0:00:03]} Nf6 {[%emt 0:00:04]} 2. Bg5 {[%emt 0:00:01]} d5 {[%emt 0:00:03]} 3. e3 {[%emt 0:00:02]} c5 {[%emt 0:00:06]} 4. Nd2 {[%emt 0:00:01]} Nc6 {[%emt 0:00:04]} 5. c3 {[%emt 0:00:03]} Qb6 {[%emt 0:00:05]} 6. Qb3 {[%emt 0:00:15] D00: 1 d4 d5: Unusual lines.} c4 {[%emt 0:00:07]} (6... Bf5 $11) 7. Qc2 $14 {[%emt 0:00:14]} g6 {[%emt 0:00:33]} 8. Bxf6 {[%emt 0:00:06] White is slightly better.} exf6 {[%emt 0:00:01]} 9. e4 {[%emt 0:00:01] [#]} Na5 $146 {[%emt 0:00:01]} (9... Bh6 $5 {[%cal Re8g8]}) ({Predecessor:} 9... dxe4 10. Nxc4 Qd8 11. Qxe4+ Be7 12. Bd3 O-O 13. Ne2 Be6 14. Ne3 f5 15. Qf3 Ne5 16. dxe5 Qxd3 {1-0 Adebayo,A (2313)-Temesgen,A (2072) Olympiad-44 Chennai 2022 (10.3)}) 10. Be2 {[%emt 0:00:33][%cal Bf1e2,Be2f3,Bf3e4][%mdl 32]} Bh6 {[%emt 0:00:09]} 11. Bf3 {[%emt 0:00:06]} O-O {[%emt 0:00:04] [#] White must now prevent ...Re8.} 12. Ne2 {[%emt 0:00:20]} (12. exd5 $5 {[%cal Rg1e2]} Bf5 13. Ne4 $14) 12... Re8 {[%emt 0:00:01]} 13. Rd1 {[%emt 0:00:11]} ({Better is} 13. exd5 $14 Qd8 14. O-O) 13... Bxd2+ {[%emt 0:01:31]} ({Black should try} 13... dxe4 $15 14. Nxe4 Bd7) 14. Rxd2 $11 {[%emt 0:00:04]} dxe4 {[%emt 0:00:05]} 15. Bxe4 {[%emt 0:00:00]} f5 {[%emt 0:00:02]} 16. Bf3 {[%emt 0:00:01]} f4 {[%emt 0:00:01]} (16... Bd7 $14) 17. O-O $16 {[%emt 0:00:50]} Bf5 {[%emt 0:00:12]} 18. Qa4 {[%emt 0:00:08]} (18. Qd1 $5 {[%cal Re2f4]}) 18... g5 {[%emt 0:00:24]} 19. b4 {[%emt 0:00:26]} (19. d5 $14) 19... Nc6 $1 $11 {[%emt 0:00:44]} 20. Nc1 {[%emt 0:00:12]} (20. b5 $5 {[%cal Rb5c6]} Na5 21. h3 $11) 20... a6 {[%emt 0:00:12][%cal Ba7a6,Ba6a5][%mdl 32]} 21. Qd1 {[%emt 0:00:18]} a5 {[%emt 0:00:09]} 22. b5 {[%emt 0:00:30]} Qxb5 {[%emt 0:00:09]} 23. a4 {[%emt 0:00:00]} Qb6 {[%emt 0:00:26]} 24. Bd5 {[%emt 0:00:03]} Ne7 {[%emt 0:00:14]} 25. Bxc4 {[%emt 0:00:13]} Rec8 {[%emt 0:00:02]} 26. Qe2 {[%emt 0:00:14]} Ng6 {[%emt 0:00:01]} (26... Qf6 $5 {[%cal Rf4f3]}) 27. Bd3 {[%emt 0:00:33]} Qf6 {[%emt 0:00:21]} 28. Rc2 {[%emt 0:01:00][%cal Bd2c2,Bc2b2,Bb2b5][%mdl 32]} Re8 {[%emt 0:00:59]} 29. Qd1 {[%emt 0:00:03]} Re7 {[%emt 0:00:22]} ({Black should play} 29... Nh4 $15) 30. Bxf5 {[%emt 0:00:05]} Qxf5 {[%emt 0:00:01]} 31. Rb2 {[%emt 0:00:00]} Rae8 {[%emt 0:01:32]} 32. Rb5 {[%emt 0:00:11]} Qf6 {[%emt 0:00:02]} 33. Nd3 {[%emt 0:00:33]} Rc7 {[%emt 0:00:52]} 34. Re1 {[%emt 0:00:19] Dodges f3} Rxe1+ {[%emt 0:00:34]} 35. Qxe1 {[%emt 0:00:00]} b6 {[%emt 0:00:02] Inhibits Nc5.} 36. Ne5 {[%emt 0:00:37] Against Qc6} Nxe5 {[%emt 0:00:10]} 37. Rxe5 {[%emt 0:00:00][%mdl 4096] Endgame KQR-KQR} h6 {[%emt 0:00:08]} 38. h3 {[%emt 0:00:39]} Kg7 {[%emt 0:00:04]} 39. Rb5 {[%emt 0:00:20]} Qc6 {[%emt 0:00:07]} (39... Rc4 $5 {[%cal Rc4a4]}) 40. Rb3 {[%emt 0:00:21]} f6 {[%emt 0:00:09]} 41. h4 {[%emt 0:00:10]} f3 {[%emt 0:00:02]} (41... gxh4 {simplifies} 42. f3 h3 43. Qe4 hxg2 44. Kxg2 Qxa4 45. Rxb6 Qa2+) 42. h5 {[%emt 0:00:09] Strongly threatening Qb1.} fxg2 {[%emt 0:00:16]} (42... Qxa4 43. Rxb6 Qd7 44. gxf3 $16 (44. Qe4 Qf7 $14)) 43. Qb1 {[%emt 0:00:01]} (43. Qe2 $11) 43... f5 $2 {[%emt 0:00:01]} (43... Qxa4 $2 44. Qg6+ (44. Rxb6 Qe8 $11) 44... Kf8 45. Qxf6+ Rf7 46. Qxb6 $18) (43... Qe8 $15 {stays ahead.} 44. Kxg2 Qxh5) 44. Qxf5 {[%emt 0:00:05]} (44. Rxb6 $16 Qc4 45. Rg6+ (45. Qxf5 $2 Qf1+ 46. Kh2 g1=Q#) (45. Kxg2 Qd5+ 46. f3 Rxc3 $11) 45... Kh7 46. Rf6 (46. Qxf5 $2 Qf1+ 47. Kh2 g1=Q#) 46... Qf1+ 47. Qxf1 gxf1=N 48. Kxf1) 44... Re7 {[%emt 0:00:03]} (44... Qxa4 45. Rxb6 Qd7 46. Rg6+ Kh7 47. Rxh6+ Kg8 48. Qxg5+ Qg7 49. Qd8+ (49. Qxg2 Qxg2+ 50. Kxg2 Rxc3 $16) 49... Qf8 50. Rh8+ Kxh8 51. Qxf8+) (44... Rf7 $11 45. d5 Qc4 46. Qg6+ Kh8 47. Qxh6+ (47. Qxb6 $2 Qf1+ 48. Kh2 g1=Q#) 47... Kg8 48. Qg6+ (48. Qxb6 $2 Qf1+ 49. Kh2 g1=Q#) (48. Qxg5+ $2 Rg7 $19) 48... Kh8 49. Qh6+ (49. Qxb6 $2 Qf1+ 50. Kh2 g1=Q#) 49... Kg8 50. Qg6+ (50. Qxb6 $2 Qf1+ 51. Kh2 g1=Q#) (50. Qxg5+ $2 Rg7 $19) 50... Kh8 51. Qh6+ (51. Qxb6 $2 Qf1+ 52. Kh2 g1=Q#)) 45. Rb1 $1 $14 {[%emt 0:00:02] aiming for d5. Dancing on a razor blade.} (45. d5 $6 Qd6 $16) 45... Rf7 $1 {[%emt 0:00:02]} (45... Qxa4 46. Rxb6 Qd1+ 47. Kxg2 Qxh5 48. Qf6+ (48. Qxa5 $2 Qg4+ 49. Kh2 Qh4+ 50. Kg2 g4 $19) 48... Kg8 49. Qxe7 $18) 46. Qe5+ {[%emt 0:00:16]} Kh7 $2 {[%emt 0:00:01] Loses the game.} (46... Rf6 $1 $14) 47. d5 $18 {[%emt 0:00:02][%cal Bd4d5,Bd5d6,Bd6d7][%mdl 32]} Qc5 {[%emt 0:00:03]} 48. Rb2 {[%emt 0:00:09]} (48. Kxg2 $2 {loses.} Qxf2+ 49. Kh1 Qh4+ 50. Kg1 Qg4+ 51. Kh1 Qxh5+ 52. Kg1 Qg4+ 53. Kh1 Qf3+ 54. Kh2 Qf2+ 55. Kh1 Qh4+ 56. Kg2 Qg4+ 57. Kh1 Qh4+ 58. Kg2 Qg4+ 59. Kh1 $19) 48... Qc4 {[%emt 0:00:08] [#] ( -> ...Qf1+)} 49. Re2 {[%emt 0:00:28] Threatens to win with Qe6.} Qh4 {[%emt 0:00:05][%csl Gg2][%cal Rh4h1]} 50. Qe4+ {[%emt 0:00:03]} (50. Kxg2 Qg4+ 51. Kf1 Qxh5 52. Qe4+ Qg6 $11) 50... Qxe4 $2 {[%emt 0:00:01]} (50... Kh8 {is tougher.} 51. Qxh4 (51. Qxg2 Qxa4 52. Re1 Kg8 $11) 51... gxh4 52. Kxg2 Kg7) 51. Rxe4 {[%emt 0:00:00]} Rf3 {[%emt 0:00:05]} (51... Kg7 $142 52. Kxg2 Rc7) 52. d6 {[%emt 0:00:07] Threatening mate with d7.} ({Less strong is} 52. Kxg2 Rd3 53. c4 Kg7 $18) 52... Kg7 {[%emt 0:00:03]} 53. d7 {[%emt 0:00:02] Artfully played by Nakamura.   Weighted Error Value: White=0.18 (very precise) /Black=0.40} 1-0

[Event "CCT Airthings Masters Play-In 2023"]
[Site "Online"]
[Date "2023.02.03"]
[Round "5"]
[White "Radjabov, Teimour"]
[Black "Blomqvist, Erik"]
[Result "1/2-1/2"]
[ECO "D24"]
[WhiteElo "2747"]
[BlackElo "2510"]
[Annotator "TA"]
[PlyCount "110"]
[EventDate "2023.02.03"]
[EventType "swiss"]
[EventCountry "NET"]
[SourceTitle "playchess.com"]
[Source "ChessBase"]
[SourceQuality "1"]
[TimeControl "600+2"]

{[%evp 10,110,3,-18,-18,-17,-19,-11,7,9,6,8,4,15,10,8,10,-5,1,-7,0,0,-2,-34,-33,-34,-34,-37,-27,-26,-27,-24,0,0,0,-75,-43,-52,-52,-52,-41,-37,-41,-49,-45,-48,-33,-33,-33,-54,-54,-52,-26,-33,-33,-32,-33,-27,0,0,0,0,0,-18,-8,-10,0,-61,-61,-61,-61,-66,-66,-68,-61,-62,-62,-69,-12,-45,-3,-9,0,-31,-31,-45,-46,-69,-47,-53,0,0,0,0,0,0,0,0,0,0,0,0,0]} 1. Nf3 {[%emt 0:00:30]} d5 {[%emt 0:00:05]} 2. d4 {[%emt 0:00:06]} Nf6 {[%emt 0:00:01]} 3. c4 {[%emt 0:00:02]} dxc4 {[%emt 0:00:00]} 4. Nc3 {[%emt 0:00:03]} a6 {[%emt 0:00:05]} 5. a4 {[%emt 0:00:04]} e6 {[%emt 0:00:33]} 6. e4 {[%emt 0:00:06]} Bb4 {[%emt 0:00:25] D24: Queen's Gambit Accepted: 3 Nf3 Nf6 4 Nc3.} 7. e5 {[%emt 0:00:41]} Nd5 {[%emt 0:00:02]} 8. Bd2 {[%emt 0:00:02] [#]} b5 $1 {[%emt 0:00:07]} 9. axb5 {[%emt 0:00:05]} Nb6 {[%emt 0:00:01]} 10. bxa6 {[%emt 0:00:20]} Nxa6 {[%emt 0:00:16]} 11. Be2 {[%emt 0:00:56]} Bb7 {[%emt 0:00:01]} 12. O-O {[%emt 0:00:02]} O-O {[%emt 0:00:02] [#]} 13. Qc2 $146 {[%emt 0:00:04]} ({Predecessor:} 13. Na4 c5 14. dxc5 Bxc5 15. Nxc5 Nxc5 16. Be3 Nd3 17. Rxa8 Bxa8 18. b3 Bxf3 19. Bxf3 {½-½ Mamedyarov,S (2762)-Kasimdzhanov,R (2691) Amir Timur 680 rapid 2016 (2)}) 13... h6 {[%emt 0:00:25]} 14. Rfd1 {[%emt 0:00:11]} Be7 {[%emt 0:00:17]} 15. Na4 {[%emt 0:00:45]} Bd5 {[%emt 0:00:42]} 16. Nc3 {[%emt 0:01:54]} (16. Qc3 $5 {[%cal Rb2b3]}) 16... Nb4 {[%emt 0:00:18]} 17. Rxa8 {[%emt 0:00:04]} Qxa8 {[%emt 0:00:29]} 18. Qb1 {[%emt 0:00:02]} Bb7 {[%emt 0:00:41]} 19. b3 {[%emt 0:00:19]} cxb3 {[%emt 0:00:21]} 20. Qxb3 {[%emt 0:00:00]} c5 {[%emt 0:01:46]} 21. dxc5 {[%emt 0:00:42]} Bxc5 {[%emt 0:00:02]} 22. Be1 {[%emt 0:00:02]} (22. Be3 $11 Qa5 23. Bxc5 Qxc5 24. Rb1 Bxf3 25. Bxf3 (25. Qxb4 Qxb4 26. Rxb4 Bxe2 $11)) 22... N4d5 {[%emt 0:00:51]} 23. Nxd5 {[%emt 0:00:37]} Nxd5 {[%emt 0:00:12]} 24. Rb1 {[%emt 0:01:19]} Bc6 {[%emt 0:00:02]} 25. Qc4 {[%emt 0:00:30] Dodges Nf4} Bb6 {[%emt 0:00:42]} 26. Kf1 {[%emt 0:00:59]} Rc8 {[%emt 0:00:04][%cal Bf8c8,Bc8a8,Ba8a2][%mdl 32]} 27. Qa6 $1 {[%emt 0:00:03]} Qxa6 {[%emt 0:00:19]} 28. Bxa6 {[%emt 0:00:02]} Ra8 {[%emt 0:00:04]} 29. Bb5 {[%emt 0:00:05]} Bxb5+ {[%emt 0:00:06]} 30. Rxb5 {[%emt 0:00:02]} Ra2 {[%emt 0:00:08]} 31. h4 {[%emt 0:00:04]} Kh7 {[%emt 0:00:42]} 32. h5 {[%emt 0:00:08]} g6 {[%emt 0:00:06]} 33. hxg6+ {[%emt 0:00:02]} Kxg6 {[%emt 0:00:01]} 34. Bd2 {[%emt 0:00:02]} Kf5 {[%emt 0:00:07]} 35. Rb3 {[%emt 0:00:03]} h5 {[%emt 0:00:10]} 36. Be1 {[%emt 0:00:02]} Ra1 {[%emt 0:00:42]} 37. g3 {[%emt 0:00:03]} Ba5 {[%emt 0:00:05]} 38. Ke2 {[%emt 0:00:06]} (38. Rb7 $11) 38... Bxe1 $15 {[%emt 0:00:02]} 39. Nxe1 {[%emt 0:00:00]} Kxe5 {[%emt 0:00:00][%mdl 4096] Endgame KRN-KRN} 40. Nf3+ {[%emt 0:00:06]} Kf5 {[%emt 0:00:03]} 41. Nd4+ {[%emt 0:00:03]} Ke4 {[%emt 0:00:02]} 42. Nf3 {[%emt 0:00:03]} Ra2+ {[%emt 0:00:01]} 43. Kf1 {[%emt 0:00:01]} f6 {[%emt 0:00:04] Dodges Ng5+} ({Black should try} 43... Kf5 $15) 44. Kg2 {[%emt 0:00:02]} e5 {[%emt 0:00:03]} 45. Nh4 {[%emt 0:00:06]} f5 {[%emt 0:00:05]} 46. Nf3 {[%emt 0:00:03]} f4 {[%emt 0:00:02] [#] Hoping for ...Ne3+.} 47. gxf4 {[%emt 0:00:02]} Kxf4 {[%emt 0:00:09]} ({And not} 47... exf4 48. Ng5+ Kf5 49. Nf7 $17) 48. Ng1 {[%emt 0:00:02]} Kf5 {[%emt 0:00:03] ...Nf4+ would be deadly.} (48... e4 $5 {[%cal Re4e3]} 49. Kf1 h4 $17) 49. Nh3 {[%emt 0:00:02]} Nf4+ {[%emt 0:00:03]} (49... Ra4 $15) 50. Nxf4 $11 {[%emt 0:00:01] The position is equal.} Kxf4 {[%emt 0:00:00] KR-KR} 51. Rf3+ {[%emt 0:00:02]} Kg4 {[%emt 0:00:01]} 52. Rg3+ {[%emt 0:00:01]} Kf5 {[%emt 0:00:00]} 53. Rf3+ {[%emt 0:00:00]} Kg4 {[%emt 0:00:01]} 54. Rg3+ {[%emt 0:00:01]} Kf4 {[%emt 0:00:00]} 55. Rf3+ {[%emt 0:00:01]} Kg4 {[%emt 0:00:02] Weighted Error Value: White=0.10 (very precise) /Black=0.09 (flawless)} 1/2-1/2